fUST/lending_fUST_20240110
["ID","MTS","AMOUNT","RATE_DAILY","PERIOD"]
[311077711,1704898239229,-500.0,0.00027397,2]
[311077712,1704898239243,-598.24802421,0.00027397,2]
[311077713,1704898239253,-500.0,0.00027397,2]
[311077714,1704898239263,-500.0,0.00027397,2]
[311077715,1704898239273,-3562.75,0.00027397,2]
[311077716,1704898239282,-500.0,0.00027397,2]
[311077717,1704898239292,-500.0,0.00027397,2]
[311077718,1704898239302,-865.34,0.00027397,2]
[311077719,1704898239312,-500.0,0.00027397,2]
[311077720,1704898239322,-500.0,0.00027397,2]
[311077721,1704898239332,-500.0,0.00027397,2]
[311077722,1704898239342,-564.67628536,0.00027397,2]
[311077723,1704898239352,-500.0,0.00027397,2]
[311077724,1704898239365,-500.0,0.00027397,2]
[311077725,1704898239375,-500.0,0.00027397,2]
[311077726,1704898239385,-500.0,0.00027397,2]
[311077727,1704898239395,-500.0,0.00027397,2]
[311077728,1704898239405,-500.0,0.00027397,2]
[311077729,1704898239415,-500.0,0.00027397,2]
[311077730,1704898239424,-500.0,0.00027397,2]
[311077731,1704898239434,-500.0,0.00027397,2]
[311077732,1704898239445,-500.0,0.00027397,2]
[311077733,1704898239455,-500.0,0.00027397,2]
[311077734,1704898239465,-500.0,0.00027397,2]
[311077735,1704898239474,-500.0,0.00027397,2]
[311077736,1704898239484,-500.0,0.00027397,2]
[311077737,1704898239493,-2155.77,0.00027397,2]
[311077738,1704898239503,-500.0,0.00027397,2]
[311077739,1704898239512,-1158.85,0.00027397,2]
[311077740,1704898239521,-502.97512192,0.00027397,2]
[311077741,1704898239532,-668.64,0.00027397,2]
[311077742,1704898239542,-500.0,0.00027397,2]
[311077743,1704898239552,-813.54,0.00027397,2]
[311077744,1704898239562,-1410.37,0.00027397,2]
[311077745,1704898239571,-500.0,0.00027397,2]
[311077746,1704898239580,-500.0,0.00027397,2]
[311077747,1704898239590,-166.666666,0.00027405,2]
[311077748,1704898239599,-18075.70037409,0.00027517,3]
[311077749,1704898239609,-13990.53113151,0.00027517,4]
[311077750,1704898239618,-670.53196507,0.00027517,3]
[311077751,1704898239628,-644.46,0.00027534,2]
[311077752,1704898239638,-179.36974912,0.00027571,2]
[311077753,1704898239647,-2000.0,0.000276,2]
[311077754,1704898239657,-2000.0,0.0002761,2]
[311077755,1704898239667,-2000.0,0.0002762,2]
[311077756,1704898239677,-2079.751714,0.0002763,2]
[311077757,1704898239686,-500.0,0.00027671,2]
[311077758,1704898239695,-219.26561474,0.00027671,2]
[311077759,1704898239705,-500.0,0.00027671,2]
[311077760,1704898239715,-500.0,0.00027671,2]
[311077761,1704898239724,-500.0,0.00027671,2]
[311077762,1704898239734,-500.0,0.00027671,2]
[311077763,1704898239743,-500.0,0.00027671,2]
[311077764,1704898239753,-500.0,0.00027671,2]
[311077765,1704898239763,-500.0,0.00027671,2]
[311077766,1704898239772,-500.0,0.00027671,2]
[311077767,1704898239783,-500.0,0.00027671,2]
[311077768,1704898239793,-317.83820168,0.00027671,2]
[311077769,1704898239803,-500.0,0.00027671,2]
[311077770,1704898239812,-500.0,0.00027671,2]
[311077772,1704898239822,-500.0,0.00027671,2]
[311077774,1704898239832,-500.0,0.00027671,2]
[311077776,1704898239842,-500.0,0.00027671,2]
[311077777,1704898239851,-500.0,0.00027671,2]
[311077778,1704898239861,-500.0,0.00027671,2]
[311077779,1704898239869,-500.0,0.00027671,2]
[311077781,1704898239879,-500.0,0.00027671,2]
[311077783,1704898239888,-500.0,0.00027671,2]
[311077785,1704898239897,-500.0,0.00027671,2]
[311077786,1704898239906,-500.0,0.00027671,2]
[311077787,1704898239916,-500.0,0.00027671,2]
[311077788,1704898239926,-500.0,0.00027671,2]
[311077789,1704898239935,-500.0,0.00027671,2]
[311077790,1704898239945,-500.0,0.00027671,2]
[311077791,1704898239954,-226.49621579,0.00027671,2]
[311077792,1704898239964,-500.0,0.00027671,2]
[311077793,1704898239973,-500.0,0.00027671,2]
[311077794,1704898239982,-500.0,0.00027671,2]
[311077796,1704898239992,-500.0,0.00027671,2]
[311077797,1704898240001,-500.0,0.00027671,2]
[311077799,1704898240011,-500.0,0.00027671,2]
[311077800,1704898240020,-500.0,0.00027671,2]
[311077801,1704898240033,-500.0,0.00027671,2]
[311077802,1704898240043,-500.0,0.00027671,2]
[311077803,1704898240054,-500.0,0.00027671,2]
[311077804,1704898240063,-500.0,0.00027671,2]
[311077805,1704898240073,-629.07,0.00027671,2]
[311077806,1704898240082,-1029.85,0.00027671,2]
[311077807,1704898240092,-508.73,0.00027671,2]
[311077808,1704898240101,-500.0,0.00027671,2]
[311077809,1704898240111,-500.0,0.00027671,2]
[311077810,1704898240121,-500.0,0.00027671,2]
[311077811,1704898240130,-500.0,0.00027671,2]
[311077812,1704898240140,-500.0,0.00027671,2]
[311077813,1704898240150,-7574.25,0.00027671,2]
[311077814,1704898240160,-500.0,0.00027671,2]
[311077815,1704898240170,-188.56233448,0.00027671,2]
[311077816,1704898240179,-500.0,0.00027671,2]
[311077817,1704898240189,-500.0,0.00027671,2]
[311077818,1704898240198,-500.0,0.00027671,2]
[311077819,1704898240208,-161.74440105,0.00027671,2]
[311077820,1704898240217,-500.0,0.00027671,2]
[311077821,1704898240226,-500.0,0.00027671,2]
[311077822,1704898240236,-3562.75,0.00027671,2]
[311077823,1704898240245,-500.0,0.00027671,2]
[311077824,1704898240254,-500.0,0.00027671,2]
[311077825,1704898240263,-865.34,0.00027671,2]
[311077826,1704898240272,-500.0,0.00027671,2]
[311077827,1704898240283,-500.0,0.00027671,2]
[311077828,1704898240292,-500.0,0.00027671,2]
[311077829,1704898240302,-500.0,0.00027671,2]
[311077830,1704898240311,-500.0,0.00027671,2]
[311077831,1704898240320,-500.0,0.00027671,2]
[311077832,1704898240330,-500.0,0.00027671,2]
[311077833,1704898240339,-500.0,0.00027671,2]
[311077834,1704898240348,-500.0,0.00027671,2]
[311077835,1704898240358,-500.0,0.00027671,2]
[311077836,1704898240367,-584.75121834,0.00027671,2]
[311077837,1704898240376,-500.0,0.00027671,2]
[311077838,1704898240386,-500.0,0.00027671,2]
[311077839,1704898240395,-500.0,0.00027671,2]
[311077840,1704898240404,-500.0,0.00027671,2]
[311077841,1704898240413,-2155.77,0.00027671,2]
[311077842,1704898240423,-1158.85,0.00027671,2]
[311077843,1704898240433,-668.64,0.00027671,2]
[311077844,1704898240443,-813.54,0.00027671,2]
[311077845,1704898240453,-1410.37,0.00027671,2]
[311077846,1704898240463,-500.0,0.00027671,2]
[311077847,1704898240472,-687.59711705,0.000277,2]
[311077848,1704898240481,-500.0,0.00027944,2]
[311077849,1704898240490,-500.0,0.00027944,2]
[311077850,1704898240500,-500.0,0.00027944,2]
[311077851,1704898240509,-334.83564597,0.00027944,2]
[311077852,1704898240518,-500.0,0.00027944,2]
[311077853,1704898240529,-608.789446,0.00027944,2]
[311077854,1704898240538,-500.0,0.00027944,2]
[311077855,1704898240547,-500.0,0.00027944,2]
[311077856,1704898240556,-620.55751654,0.00027944,2]
[311077857,1704898240565,-500.0,0.00027944,2]
[311077858,1704898240574,-458.842477,0.00027944,2]
[311077860,1704898240583,-500.0,0.00027944,2]
[311077862,1704898240592,-500.0,0.00027944,2]
[311077864,1704898240601,-500.0,0.00027944,2]
[311077866,1704898240610,-500.0,0.00027944,2]
[311077868,1704898240620,-500.0,0.00027944,2]
[311077870,1704898240629,-500.0,0.00027944,2]
[311077872,1704898240638,-500.0,0.00027944,2]
[311077874,1704898240647,-500.0,0.00027944,2]
[311077876,1704898240656,-499.99999999,0.00027944,2]
[311077878,1704898240665,-500.0,0.00027944,2]
[311077880,1704898240675,-500.0,0.00027944,2]
[311077882,1704898240684,-400.0,0.00027944,2]
[311077884,1704898240693,-500.0,0.00027944,2]
[311077886,1704898240702,-500.0,0.00027944,2]
[311077888,1704898240712,-500.0,0.00027945,2]
[311077890,1704898240721,-500.0,0.00027945,2]
[311077892,1704898240730,-321.53469162,0.00027945,2]
[311077894,1704898240739,-500.0,0.00027945,2]
[311077896,1704898240748,-500.0,0.00027945,2]
[311077898,1704898240758,-500.0,0.00027945,2]
[311077900,1704898240767,-500.0,0.00027945,2]
[311077902,1704898240777,-500.0,0.00027945,2]
[311077904,1704898240787,-500.0,0.00027945,2]
[311077906,1704898240799,-500.0,0.00027945,2]
[311077908,1704898240808,-500.0,0.00027945,2]
[311077910,1704898240817,-500.0,0.00027945,2]
[311077912,1704898240827,-517.6,0.00027945,2]
[311077914,1704898240836,-500.0,0.00027945,2]
[311077916,1704898240846,-500.0,0.00027945,2]
[311077918,1704898240856,-500.0,0.00027945,2]
[311077920,1704898240865,-500.0,0.00027945,2]
[311077922,1704898240874,-500.0,0.00027945,2]
[311077924,1704898240884,-500.0,0.00027945,2]
[311077926,1704898240893,-500.0,0.00027945,2]
[311077928,1704898240903,-500.0,0.00027945,2]
[311077930,1704898240912,-500.0,0.00027945,2]
[311077932,1704898240922,-500.0,0.00027945,2]
[311077934,1704898240931,-500.0,0.00027945,2]
[311077936,1704898240941,-500.0,0.00027945,2]
[311077938,1704898240951,-500.0,0.00027945,2]
[311077940,1704898240960,-500.0,0.00027945,2]
[311077942,1704898240970,-528.22,0.00027945,2]
[311077944,1704898240979,-500.0,0.00027945,2]
[311077946,1704898240988,-500.0,0.00027945,2]
[311077948,1704898240998,-1029.85,0.00027945,2]
[311077950,1704898241007,-508.73,0.00027945,2]
[311077952,1704898241017,-500.0,0.00027945,2]
[311077954,1704898241028,-500.0,0.00027945,2]
[311077956,1704898241037,-500.0,0.00027945,2]
[311077958,1704898241046,-500.0,0.00027945,2]
[311077960,1704898241056,-500.0,0.00027945,2]
[311077962,1704898241066,-7574.25,0.00027945,2]
[311077964,1704898241075,-500.0,0.00027945,2]
[311077966,1704898241084,-500.0,0.00027945,2]
[311077968,1704898241094,-500.0,0.00027945,2]
[311077970,1704898241104,-500.0,0.00027945,2]
[311077972,1704898241114,-500.0,0.00027945,2]
[311077974,1704898241123,-3562.75,0.00027945,2]
[311077976,1704898241132,-500.0,0.00027945,2]
[311077978,1704898241141,-281.36,0.00027945,2]
[311077980,1704898241151,-865.34,0.00027945,2]
[311077982,1704898241160,-500.0,0.00027945,2]
[311077984,1704898241170,-500.0,0.00027945,2]
[311077986,1704898241179,-500.0,0.00027945,2]
[311077988,1704898241189,-500.0,0.00027945,2]
[311077990,1704898241198,-500.0,0.00027945,2]
[311077992,1704898241207,-500.0,0.00027945,2]
[311077994,1704898241216,-500.0,0.00027945,2]
[311077996,1704898241226,-500.0,0.00027945,2]
[311077998,1704898241234,-500.0,0.00027945,2]
[311078000,1704898241243,-500.0,0.00027945,2]
[311078002,1704898241252,-500.0,0.00027945,2]
[311078004,1704898241262,-500.0,0.00027945,2]
[311078006,1704898241271,-500.0,0.00027945,2]
[311078008,1704898241282,-2155.77,0.00027945,2]
[311078010,1704898241291,-1158.85,0.00027945,2]
[311078012,1704898241301,-668.64,0.00027945,2]
[311078014,1704898241310,-813.54,0.00027945,2]
[311078016,1704898241319,-1410.37,0.00027945,2]
[311078018,1704898241328,-2926.57589157,0.00028218,2]
[311078020,1704898241337,-500.0,0.00028219,2]
[311078022,1704898241347,-171.08,0.00028219,2]
[311078024,1704898241359,-581.94597339,0.00028219,2]
[311078026,1704898241369,-500.0,0.00028219,2]
[311078028,1704898241379,-500.0,0.00028219,2]
[311078031,1704898241397,-500.0,0.00028219,2]
[311078033,1704898241408,-566.85678419,0.00028219,2]
[311078035,1704898241417,-295.98,0.00028219,2]
[311078038,1704898241427,-500.0,0.00028219,2]
[311078039,1704898241437,-500.0,0.00028219,2]
[311078041,1704898241447,-500.0,0.00028219,2]
[311078043,1704898241457,-500.0,0.00028219,2]
[311078046,1704898241467,-500.0,0.00028219,2]
[311078048,1704898241476,-603.56,0.00028219,2]
[311078050,1704898241486,-500.0,0.00028219,2]
[311078051,1704898241496,-308.861743,0.00028219,2]
[311078053,1704898241505,-500.0,0.00028219,2]
[311078055,1704898241514,-500.0,0.00028219,2]
[311078057,1704898241524,-500.0,0.00028219,2]
[311078059,1704898241536,-500.0,0.00028219,2]
[311078062,1704898241546,-500.0,0.00028219,2]
[311078064,1704898241556,-500.0,0.00028219,2]
[311078066,1704898241565,-1029.85,0.00028219,2]
[311078068,1704898241575,-508.73,0.00028219,2]
[311078070,1704898241584,-500.0,0.00028219,2]
[311078072,1704898241593,-346.77438312,0.00028219,2]
[311078074,1704898241603,-275.49755677,0.00028219,2]
[311078076,1704898241613,-7574.25,0.00028219,2]
[311078078,1704898241622,-500.0,0.00028219,2]
[311078080,1704898241631,-500.0,0.00028219,2]
[311078082,1704898241640,-500.0,0.00028219,2]
[311078084,1704898241649,-500.0,0.00028219,2]
[311078086,1704898241659,-3562.75,0.00028219,2]
[311078088,1704898241669,-865.34,0.00028219,2]
[311078090,1704898241678,-500.0,0.00028219,2]
[311078092,1704898241687,-500.0,0.00028219,2]
[311078093,1704898241696,-500.0,0.00028219,2]
[311078095,1704898241706,-500.0,0.00028219,2]
[311078097,1704898241715,-500.0,0.00028219,2]
[311078099,1704898241725,-500.0,0.00028219,2]
[311078100,1704898241735,-500.0,0.00028219,2]
[311078101,1704898241744,-500.0,0.00028219,2]
[311078102,1704898241755,-2155.77,0.00028219,2]
[311078104,1704898241765,-1158.85,0.00028219,2]
[311078105,1704898241778,-668.64,0.00028219,2]
[311078107,1704898241788,-813.54,0.00028219,2]
[311078108,1704898241798,-1410.37,0.00028219,2]
[311078110,1704898241808,-500.0,0.00028493,2]
[311078111,1704898241818,-518.9,0.00028493,2]
[311078112,1704898241828,-500.0,0.00028493,2]
[311078113,1704898241838,-500.0,0.00028493,2]
[311078114,1704898241970,-500.0,0.00028493,2]
[311078115,1704898241992,-500.0,0.00028493,2]
[311078116,1704898242002,-500.0,0.00028493,2]
[311078117,1704898242011,-500.0,0.00028493,2]
[311078118,1704898242020,-500.0,0.00028493,2]
[311078119,1704898242031,-500.0,0.00028493,2]
[311078120,1704898242040,-500.0,0.00028493,2]
[311078121,1704898242049,-500.0,0.00028493,2]
[311078122,1704898242058,-500.0,0.00028493,2]
[311078123,1704898242067,-500.0,0.00028493,2]
[311078124,1704898242076,-1029.85,0.00028493,2]
[311078125,1704898242085,-508.73,0.00028493,2]
[311078126,1704898242095,-7574.25,0.00028493,2]
[311078127,1704898242104,-500.0,0.00028493,2]
[311078128,1704898242113,-500.0,0.00028493,2]
[311078129,1704898242123,-500.0,0.00028493,2]
[311078130,1704898242132,-3562.75,0.00028493,2]
[311078131,1704898242141,-865.34,0.00028493,2]
[311078132,1704898242151,-500.0,0.00028493,2]
[311078133,1704898242161,-500.0,0.00028493,2]
[311078134,1704898242170,-218.75640608,0.00028493,2]
[311078135,1704898242179,-500.0,0.00028493,2]
[311078136,1704898242189,-500.0,0.00028493,2]
[311078137,1704898242199,-500.0,0.00028493,2]
[311078138,1704898242209,-2155.77,0.00028493,2]
[311078139,1704898242218,-1158.85,0.00028493,2]
[311078140,1704898242228,-668.64,0.00028493,2]
[311078141,1704898242237,-813.54,0.00028493,2]
[311078142,1704898242247,-1410.37,0.00028493,2]
[311078143,1704898242257,-254.00672133,0.00028767,2]
[311078145,1704898242266,-500.0,0.00028767,2]
[311078146,1704898242275,-500.0,0.00028767,2]
[311078147,1704898242286,-500.0,0.00028767,2]
[311078148,1704898242295,-525.93,0.00028767,2]
[311078149,1704898242304,-500.0,0.00028767,2]
[311078150,1704898242312,-578.7796484,0.00028767,2]
[311078152,1704898242322,-171.62,0.00028767,2]
[311078153,1704898242331,-500.0,0.00028767,2]
[311078154,1704898242341,-500.0,0.00028767,2]
[311078155,1704898242350,-500.0,0.00028767,2]
[311078156,1704898242360,-500.0,0.00028767,2]
[311078157,1704898242369,-500.0,0.00028767,2]
[311078158,1704898242379,-1029.85,0.00028767,2]
[311078160,1704898242388,-508.73,0.00028767,2]
[311078162,1704898242398,-7574.25,0.00028767,2]
[311078164,1704898242408,-500.0,0.00028767,2]
[311078166,1704898242418,-500.0,0.00028767,2]
[311078168,1704898242428,-500.0,0.00028767,2]
[311078170,1704898242437,-3562.75,0.00028767,2]
[311078173,1704898242447,-865.34,0.00028767,2]
[311078176,1704898242456,-481.12873839,0.00028767,2]
[311078178,1704898242466,-500.0,0.00028767,2]
[311078179,1704898242475,-500.0,0.00028767,2]
[311078180,1704898242485,-500.0,0.00028767,2]
[311078181,1704898242495,-632.4,0.00028767,2]
[311078182,1704898242504,-2155.77,0.00028767,2]
[311078183,1704898242513,-1158.85,0.00028767,2]
[311078184,1704898242523,-668.64,0.00028767,2]
[311078185,1704898242533,-813.54,0.00028767,2]
[311078186,1704898242543,-1410.37,0.00028767,2]
[311078187,1704898242552,-5560.97,0.00029,2]
[311078188,1704898242562,-426.87,0.00029,2]
[311078190,1704898242572,-5347.3,0.00029,2]
[311078191,1704898242581,-439.0,0.00029,2]
[311078192,1704898242590,-500.0,0.00029041,2]
[311078193,1704898242599,-500.0,0.00029041,2]
[311078194,1704898242609,-381.00525571,0.00029041,2]
[311078195,1704898242618,-500.0,0.00029041,2]
[311078196,1704898242628,-500.0,0.00029041,2]
[311078197,1704898242637,-500.0,0.00029041,2]
[311078198,1704898242646,-500.0,0.00029041,2]
[311078199,1704898242655,-500.0,0.00029041,2]
[311078200,1704898242665,-1029.85,0.00029041,2]
[311078201,1704898242674,-508.73,0.00029041,2]
[311078202,1704898242684,-7574.25,0.00029041,2]
[311078203,1704898242693,-500.0,0.00029041,2]
[311078204,1704898242703,-500.0,0.00029041,2]
[311078205,1704898242712,-500.0,0.00029041,2]
[311078206,1704898242721,-3562.75,0.00029041,2]
[311078207,1704898242731,-865.34,0.00029041,2]
[311078208,1704898242740,-334.09,0.00029041,2]
[311078209,1704898242749,-500.0,0.00029041,2]
[311078210,1704898242759,-500.0,0.00029041,2]
[311078211,1704898242768,-2155.77,0.00029041,2]
[311078212,1704898242777,-1158.85,0.00029041,2]
[311078213,1704898242788,-668.64,0.00029041,2]
[311078214,1704898242797,-813.54,0.00029041,2]
[311078215,1704898242806,-1410.37,0.00029041,2]
[311078216,1704898242815,-480.94,0.00029155,2]
[311078217,1704898242825,-38363.65059237,0.00029215,2]
[311078218,1704898242834,-500.0,0.00029315,2]
[311078219,1704898242844,-500.0,0.00029315,2]
[311078220,1704898242853,-500.0,0.00029315,2]
[311078221,1704898242863,-500.0,0.00029315,2]
[311078222,1704898242872,-500.0,0.00029315,2]
[311078223,1704898242883,-500.0,0.00029315,2]
[311078224,1704898242893,-500.0,0.00029315,2]
[311078225,1704898242903,-1029.85,0.00029315,2]
[311078227,1704898242913,-508.73,0.00029315,2]
[311078228,1704898242923,-7574.25,0.00029315,2]
[311078230,1704898242934,-500.0,0.00029315,2]
[311078231,1704898242945,-500.0,0.00029315,2]
[311078232,1704898242956,-500.0,0.00029315,2]
[311078233,1704898242966,-3562.75,0.00029315,2]
[311078234,1704898242975,-865.34,0.00029315,2]
[311078236,1704898242985,-500.0,0.00029315,2]
[311078237,1704898242996,-500.0,0.00029315,2]
[311078239,1704898243006,-2155.77,0.00029315,2]
[311078241,1704898243016,-1158.85,0.00029315,2]
[311078243,1704898243026,-668.64,0.00029315,2]
[311078245,1704898243048,-813.54,0.00029315,2]
[311078247,1704898243060,-1410.37,0.00029315,2]
[311078248,1704898243071,-151.0,0.0002932,2]
[311078250,1704898243081,-201.326,0.0002932,2]
[311078251,1704898243092,-472.02,0.00029589,2]
[311078253,1704898243102,-500.0,0.00029589,2]
[311078254,1704898243113,-500.0,0.00029589,2]
[311078255,1704898243125,-617.82317733,0.00029589,2]
[311078257,1704898243136,-500.0,0.00029589,2]
[311078259,1704898243146,-500.0,0.00029589,2]
[311078260,1704898243157,-500.0,0.00029589,2]
[311078262,1704898243168,-1029.85,0.00029589,2]
[311078264,1704898243179,-508.73,0.00029589,2]
[311078266,1704898243191,-7574.25,0.00029589,2]
[311078267,1704898243201,-638.91006486,0.00029589,2]
[311078268,1704898243211,-500.0,0.00029589,2]
[311078269,1704898243221,-500.0,0.00029589,2]
[311078270,1704898243231,-3562.75,0.00029589,2]
[311078271,1704898243242,-865.34,0.00029589,2]
[311078272,1704898243253,-500.0,0.00029589,2]
[311078273,1704898243263,-2155.77,0.00029589,2]
[311078274,1704898243273,-1158.85,0.00029589,2]
[311078275,1704898243291,-668.64,0.00029589,2]
[311078276,1704898243303,-813.54,0.00029589,2]
[311078277,1704898243313,-1410.37,0.00029589,2]
[311078278,1704898243323,-300.0,0.000296,14]
[311078279,1704898243335,-500.0,0.00029863,2]
[311078280,1704898243346,-500.0,0.00029863,2]
[311078281,1704898243357,-500.0,0.00029863,2]
[311078282,1704898243375,-500.0,0.00029863,2]
[311078283,1704898243385,-500.0,0.00029863,2]
[311078284,1704898243397,-1029.85,0.00029863,2]
[311078285,1704898243407,-508.73,0.00029863,2]
[311078286,1704898243416,-7574.25,0.00029863,2]
[311078287,1704898243426,-209.64,0.00029863,2]
[311078288,1704898243436,-500.0,0.00029863,2]
[311078289,1704898243447,-3562.75,0.00029863,2]
[311078290,1704898243456,-865.34,0.00029863,2]
[311078291,1704898243467,-553.73752008,0.00029863,2]
[311078292,1704898243476,-2155.77,0.00029863,2]
[311078293,1704898243486,-1158.85,0.00029863,2]
[311078294,1704898243496,-668.64,0.00029863,2]
[311078295,1704898243506,-813.54,0.00029863,2]
[311078296,1704898243515,-1410.37,0.00029863,2]
[311078297,1704898243524,-179.36974912,0.00029986,2]
[311078298,1704898243540,-881.94009009,0.00029986,2]
[311078299,1704898243550,-236.52252731,0.0003,7]
[311078300,1704898243559,-639.65046808,0.0003,4]
[311078301,1704898243569,-4999.98,0.0003,2]
[311078302,1704898243579,-4999.98,0.0003,2]
[311078303,1704898243589,-463.38099934,0.0003,4]
[311078304,1704898243599,-5000.0,0.0003,2]
[311078305,1704898243608,-5000.03,0.0003,2]
[311078306,1704898243618,-6973.85683356,0.0003,4]
[311078307,1704898243628,-399.65900583,0.0003,4]
[311078308,1704898243638,-243.77594457,0.0003,4]
[311078309,1704898243646,-2660.56374315,0.0003,2]
[311078310,1704898243725,-2339.43625685,0.0003,2]
[311078311,1704898243735,-5000.0,0.0003,2]
[311078312,1704898243744,-5000.0,0.0003,2]
[311078313,1704898243753,-5000.0,0.0003,2]
[311078314,1704898243762,-686.6335406,0.0003,4]
[311078315,1704898243771,-5000.01,0.0003,2]
[311078316,1704898243783,-18048.02930508,0.0003,4]
[311078317,1704898243792,-154.8915759,0.0003,2]
[311078318,1704898243801,-203.0,0.0003,2]
[311078319,1704898243810,-500.0,0.00030136,2]
[311078320,1704898243820,-500.0,0.00030136,2]
[311078321,1704898243829,-500.0,0.00030136,2]
[311078322,1704898243838,-500.0,0.00030136,2]
[311078323,1704898243848,-500.0,0.00030136,2]
[311078324,1704898243856,-1029.85,0.00030136,2]
[311078325,1704898243865,-508.73,0.00030136,2]
[311078326,1704898243874,-7574.25,0.00030136,2]
[311078327,1704898243883,-500.0,0.00030136,2]
[311078328,1704898243892,-3562.75,0.00030136,2]
[311078329,1704898243902,-865.34,0.00030136,2]
[311078330,1704898243911,-2155.77,0.00030136,2]
[311078331,1704898243920,-1158.85,0.00030136,2]
[311078332,1704898243930,-668.64,0.00030136,2]
[311078333,1704898243940,-813.54,0.00030136,2]
[311078334,1704898243949,-1410.37,0.00030136,2]
[311078335,1704898243958,-3180.8731799,0.00030137,2]
[311078336,1704898243968,-5000.0,0.00030137,2]
[311078337,1704898243978,-3069.09590739,0.000304,2]
[311078338,1704898243987,-500.0,0.0003041,2]
[311078339,1704898243996,-500.0,0.0003041,2]
[311078340,1704898244005,-500.0,0.0003041,2]
[311078341,1704898244014,-500.0,0.0003041,2]
[311078342,1704898244024,-500.0,0.0003041,2]
[311078343,1704898244035,-1029.85,0.0003041,2]
[311078344,1704898244044,-508.73,0.0003041,2]
[311078345,1704898244053,-7574.25,0.0003041,2]
[311078346,1704898244063,-500.0,0.0003041,2]
[311078347,1704898244073,-3562.75,0.0003041,2]
[311078348,1704898244082,-865.34,0.0003041,2]
[311078349,1704898244091,-2155.77,0.0003041,2]
[311078350,1704898244101,-1158.85,0.0003041,2]
[311078351,1704898244112,-668.64,0.0003041,2]
[311078352,1704898244121,-813.54,0.0003041,2]
[311078353,1704898244130,-1410.37,0.0003041,2]
[311078354,1704898244140,-999.30048966,0.00030584,2]
[311078355,1704898244149,-150.89437394,0.00030654,30]
[311078356,1704898244159,-571.18,0.00030684,2]
[311078357,1704898244168,-500.0,0.00030684,2]
[311078358,1704898244177,-500.0,0.00030684,2]
[311078359,1704898244187,-500.0,0.00030684,2]
[311078360,1704898244196,-500.0,0.00030684,2]
[311078361,1704898244206,-1029.85,0.00030684,2]
[311078362,1704898244215,-508.73,0.00030684,2]
[311078363,1704898244225,-7574.25,0.00030684,2]
[311078364,1704898244234,-325.87,0.00030684,2]
[311078365,1704898244244,-3562.75,0.00030684,2]
[311078366,1704898244253,-865.34,0.00030684,2]
[311078367,1704898244262,-2155.77,0.00030684,2]
[311078368,1704898244271,-1158.85,0.00030684,2]
[311078369,1704898244281,-668.64,0.00030684,2]
[311078370,1704898244290,-1410.37,0.00030684,2]
[311078371,1704898244300,-813.54,0.00030684,2]